[Event "Superbet Blitz Poland 2022"]
[Site "Warsaw"]
[Date "2022.05.22"]
[Round "3.5"]
[White "Rapport, Richard"]
[Black "Wojtaszek, Radoslaw"]
[Result "0-1"]
[ECO "B20"]
[WhiteElo "2776"]
[BlackElo "2696"]
[Annotator "TA"]
[PlyCount "147"]
[EventDate "2022.05.22"]
[EventType "tourn"]
[EventCountry "POL"]
[SourceTitle "playchess.com"]
[Source "ChessBase"]
[SourceQuality "1"]
[TimeControl "300+2"]

{[%evp 9,147,-17,0,-15,-7,-12,-11,-10,-7,-6,3,3,27,1,23,20,37,38,64,45,54,36,35,40,123,56,64,63,94,95,108,39,43,18,62,0,2,0,0,0,118,-162,-151,-176,-91,-183,-147,-161,-146,-184,0,-182,0,-178,-179,-172,-215,-179,-130,-185,-168,-173,-59,-138,-128,-231,-245,-527,-52,-60,22,29,38,-3,0,0,0,0,0,0,20,0,0,0,0,0,0,0,0,-240,-239,-269,0,0,0,0,0,0,0,0,0,0,0,-1509,-1301,-1614,-1520,-1985,-1645,-1349,-1085,-1060,-925,-1186,-209,-1076,-1009,-1025,-985,-29963,-29953,-29962,-12770,-6427,-5477,-5039,-2472,-2763,29965,29966,29963,29966,29958,29952,8846,8,8,8,8,0]} 1. e4 {[%emt 0:00:04]} c5 {[%emt 0:00:01]} 2. Nc3 {[%emt 0:00:02]} d6 {[%emt 0:00:01]} 3. Bc4 {[%emt 0:00:01]} e6 {[%emt 0:00:03]} 4. a3 {[%emt 0:00:08]} Nf6 {[%emt 0:00:02]} 5. Ba2 {[%emt 0:00:04]} Nc6 {[%emt 0:00:05]} (5... b5 $5) 6. d3 {[%emt 0:00:03] B20: Sicilian: Unusual White 2nd moves.} Be7 {[%emt 0:00:03]} 7. f4 {[%emt 0:00:13] [#]} d5 $146 {[%emt 0:00:05]} ({Predecessor:} 7... Nd4 8. Nce2 Nxe2 9. Qxe2 Bd7 10. Nf3 h6 11. Bd2 Bc6 12. Rg1 b5 13. g4 c4 {1-0 (23) Mihelj,E (1808)-Muradore,A (1543) Nova Gorica 2014}) 8. e5 {[%emt 0:00:02]} Nd7 {[%emt 0:00:01]} 9. Nf3 {[%emt 0:00:03]} b6 {[%emt 0:00:33][%cal Bb7b6,Bb6b5][%mdl 32]} 10. O-O {[%emt 0:00:07][%cal Of4f5]} Bb7 {[%emt 0:00:01]} 11. Ne2 {[%emt 0:00:09]} (11. f5 {seems wilder.} O-O 12. Qe1 Rc8 13. Qg3) 11... O-O {[%emt 0:00:29]} 12. c3 {[%emt 0:00:04]} f5 {[%emt 0:00:12]} 13. d4 {[%emt 0:00:16]} b5 {[%emt 0:00:53] Inhibits c4.} 14. Kh1 {[%emt 0:00:11]} a5 {[%emt 0:00:09]} 15. Rg1 {[%emt 0:00:11]} b4 {[%emt 0:00:22]} 16. g4 {[%emt 0:00:03]} Nb6 {[%emt 0:00:09]} (16... bxa3 $14 17. bxa3 fxg4 18. Rxg4 Qe8) 17. Bb1 {[%emt 0:00:07]} (17. gxf5 $16 exf5 18. Rg2) 17... bxc3 $14 {[%emt 0:00:12]} 18. bxc3 {[%emt 0:00:07]} Nc4 {[%emt 0:00:10]} 19. gxf5 {[%emt 0:00:13]} exf5 {[%emt 0:00:02]} 20. Qf1 {[%emt 0:00:03]} (20. Rg2 $16) 20... Bc8 {[%emt 0:00:11]} 21. Qh3 {[%emt 0:00:05]} Kh8 {[%emt 0:00:18] Active counter play!} 22. Ng3 {[%emt 0:00:07]} (22. Ng5 $14 Bxg5 23. fxg5 (23. Rxg5 cxd4 24. Rh5 h6 $11)) 22... g6 $11 {[%emt 0:00:09]} 23. Ra2 {[%emt 0:00:01]} Rb8 {[%emt 0:00:05]} 24. Bd3 {[%emt 0:00:04]} cxd4 {[%emt 0:00:04]} (24... Rb3 $11 25. Ne2 Rg8) 25. cxd4 $2 {[%emt 0:00:11][%mdl 8192]} (25. Rag2 $1 $16 {[%cal Og3f5] is necessary to keep the advantage. Strongly threatening Nxf5!} Rb6 26. Ne2) 25... Rb3 $19 {[%emt 0:00:01][%csl LRa3,LRd3]} 26. Qf1 {[%emt 0:00:03]} Ba6 {[%emt 0:00:06]} ({Stronger than} 26... Nxa3 27. Bxa3 Bxa3 28. Bb5 $17) (26... Qb6 $1 $19 27. Bc2 Rxf3 $1 28. Qxf3 Nxd4) 27. Qd1 {[%emt 0:00:26]} (27. h4 $17 {was called for.}) 27... Qb6 {[%emt 0:00:08][%cal Oc4e3]} 28. Be2 {[%emt 0:00:07]} Rb1 {[%emt 0:00:21][%cal Oc6d4]} 29. Bd3 {[%emt 0:00:10]} Rb3 {[%emt 0:00:02][%cal Oc4e3]} 30. Be2 $1 {[%emt 0:00:01]} Rb1 {[%emt 0:00:04][%cal Oe7a3]} 31. Bd3 {[%emt 0:00:18]} Ne3 $1 {[%emt 0:00:15]} 32. Qe2 {[%emt 0:00:06]} Bxd3 {[%emt 0:00:02]} 33. Qxd3 {[%emt 0:00:02]} Nc4 {[%emt 0:00:05]} (33... Rb3 $19 34. Qd2 Rb8) 34. Ne2 {[%emt 0:00:17]} (34. Rc2 $17) 34... Rb3 {[%emt 0:00:09]} 35. Nc3 {[%emt 0:00:01]} Nd8 {[%emt 0:00:18]} (35... Rc8 $19 {And now ...Na7 would win.} 36. Rag2 Nb4 $1 {[%mdl 512]} 37. axb4 axb4) 36. Nd2 {[%emt 0:00:09]} (36. Qc2 $15 Qb7 37. a4 (37. Nxd5 Nxa3 38. Bxa3 Bxa3 $17)) 36... Nxd2 $17 {[%emt 0:00:04]} 37. Bxd2 {[%emt 0:00:03]} (37. Qxd2 $17 {might work better.} Qb7 38. Rc2) 37... Ne6 $19 {[%emt 0:00:06]} 38. Qh3 $2 {[%emt 0:00:15]} (38. Qf3 {was worth a try.} Rd8 39. Qd1) 38... Rg8 $2 {[%emt 0:00:03]} (38... Qxd4 $19 39. Rc2 Bxa3) 39. Nxd5 $15 {[%emt 0:00:08] [#]} Rxh3 {[%emt 0:00:04]} ({Black should play} 39... Qb5 $1 $15 40. Qg2 Bh4) 40. Nxb6 $11 {[%emt 0:00:01]} Nxd4 {[%emt 0:00:01]} 41. Nd5 {[%emt 0:00:06]} Bc5 $40 {[%emt 0:00:02][%mdl 128] Hoping for ...Rd8. White needs to defend precisely.} (41... Nf3 {with more complications.} 42. Rg2 Rb8 43. Re2 Nxd2 44. Rexd2 Bxa3 45. Nf6 Bc1) 42. Rg3 {[%emt 0:00:12]} Rxg3 {[%emt 0:00:03]} 43. hxg3 {[%emt 0:00:01]} Rd8 {[%emt 0:00:01]} 44. Nf6 {[%emt 0:00:07]} a4 {[%emt 0:00:05]} 45. Bb4 {[%emt 0:00:02]} Bxb4 {[%emt 0:00:05]} 46. axb4 {[%emt 0:00:01][%mdl 4096] Endgame KRN-KRN} Ra8 {[%emt 0:00:01]} 47. Kg2 {[%emt 0:00:20]} a3 {[%emt 0:00:01]} 48. Kf2 $1 {[%emt 0:00:02]} Nb5 {[%emt 0:00:02] White must now prevent ...Kg7.} 49. e6 $2 {[%emt 0:00:08]} (49. Ke3 $11 {and White has nothing to worry.}) 49... Kg7 $19 {[%emt 0:00:02]} 50. Nd5 {[%emt 0:00:02]} Rd8 $2 {[%emt 0:00:06]} (50... Ra6 $19 51. e7 Kf7) 51. e7 $11 {[%emt 0:00:01]} Re8 {[%emt 0:00:01]} 52. Ke3 {[%emt 0:00:03]} Kf7 {[%emt 0:00:01]} 53. Kd3 {[%emt 0:00:02] aiming for Kc4.} Rc8 {[%emt 0:00:06]} 54. Re2 {[%emt 0:00:06]} Ra8 {[%emt 0:00:02]} 55. Kc4 {[%emt 0:00:03]} Nd6+ {[%emt 0:00:01]} 56. Kc5 $2 {[%emt 0:00:02][%mdl 8192]} (56. Kb3 $11) 56... Ne4+ $19 {[%emt 0:00:00]} 57. Kc6 {[%emt 0:00:24]} a2 {[%emt 0:00:01]} 58. Rxa2 {[%emt 0:00:07]} Rxa2 {[%emt 0:00:01]} 59. b5 {[%emt 0:00:01]} Rc2+ {[%emt 0:00:04]} 60. Kd7 {[%emt 0:00:02]} Nc5+ {[%emt 0:00:01]} 61. Kd8 {[%emt 0:00:01]} Ne6+ {[%emt 0:00:01]} 62. Kd7 {[%emt 0:00:01]} Ng7 {[%emt 0:00:04] Against e8Q+} 63. b6 {[%emt 0:00:01]} Rb2 {[%emt 0:00:04]} 64. Kc8 {[%emt 0:00:07]} Ke6 {[%emt 0:00:02]} 65. Nc7+ {[%emt 0:00:06]} Kxe7 {[%emt 0:00:01]} 66. b7 {[%emt 0:00:00]} Ne6 {[%emt 0:00:02] ( -> ...Nxc7)} 67. Nd5+ {[%emt 0:00:14]} Kd6 {[%emt 0:00:01]} 68. Ne3 {[%emt 0:00:02] Against Rc2+} Nd4 $4 {[%emt 0:00:04][%mdl 8192]} (68... Rb5 $19 69. b8=Q+ Rxb8+ 70. Kxb8 Nc5 71. Nc4+ Ke6) 69. Nc4+ {[%emt 0:00:01]} Kc5 {[%emt 0:00:02]} 70. Nxb2 {[%emt 0:00:02]} Nc6 {[%emt 0:00:01]} 71. Nd3+ {[%emt 0:00:05]} Kb6 {[%emt 0:00:02] [#]} 72. b8=Q+ $2 {[%emt 0:00:05]} (72. Nb4 $1 $18 {[%mdl 512] Intending Nxc6 and mate.} Na7+ 73. Kb8) 72... Nxb8 $11 {[%emt 0:00:00]} 73. Kxb8 {[%emt 0:00:01] White wants to mate with Ne5.} Kc6 {[%emt 0:00:01]} 74. Kc8 {[%emt 0:00:06][%mdl 32768] What a fight!  Weighted Error Value: White=0.56/Black=0.45. Sensor Board Error (Ke4/e5)?} 0-1

[Event "Superbet Blitz Poland 2022"]
[Site "Warsaw"]
[Date "2022.05.22"]
[Round "4.1"]
[White "Aronian, Levon"]
[Black "Wojtaszek, Radoslaw"]
[Result "1-0"]
[ECO "B50"]
[WhiteElo "2765"]
[BlackElo "2696"]
[Annotator "TA"]
[PlyCount "90"]
[EventDate "2022.05.22"]
[EventType "tourn"]
[EventCountry "POL"]
[SourceTitle "playchess.com"]
[Source "ChessBase"]
[SourceQuality "1"]
[TimeControl "300+2"]

{[%evp 11,90,-6,-2,-3,-6,-11,-12,-16,-9,-18,0,0,0,-10,10,12,12,3,0,-16,13,19,16,10,12,8,13,0,12,10,2,0,31,20,22,20,15,20,48,54,79,73,58,22,27,13,29,14,70,12,10,19,61,66,71,66,62,0,44,45,47,47,44,46,83,83,83,83,83,83,83,83,83,61,61,0,61,61,29964,29965,6416]} 1. e4 {[%emt 0:00:01]} c5 {[%emt 0:00:01]} 2. Nf3 {[%emt 0:00:01]} d6 {[%emt 0:00:01]} 3. c3 {[%emt 0:00:01]} Nf6 {[%emt 0:00:01]} 4. Be2 {[%emt 0:00:01]} g6 {[%emt 0:00:01]} 5. O-O {[%emt 0:00:01]} Bg7 {[%emt 0:00:02]} 6. d3 {[%emt 0:00:01]} O-O {[%emt 0:00:03]} 7. Be3 {[%emt 0:00:01] B50: Sicilian: 2...d6, Miscellaneous.} Nc6 {[%emt 0:00:01]} 8. Nbd2 {[%emt 0:00:01]} e5 {[%emt 0:00:06] is now more promising than 8...Ng4.} 9. a3 {[%emt 0:00:07] The position is equal.} h6 {[%emt 0:00:05]} 10. h3 {[%emt 0:00:08]} b6 {[%emt 0:00:02] [#]} 11. b4 $146 {[%emt 0:00:03]} ({Predecessor:} 11. d4 cxd4 12. cxd4 Nxd4 13. Nxd4 exd4 14. Bxd4 Bb7 15. Rc1 Nxe4 16. Nxe4 Bxe4 17. Bxg7 Bxg2 18. Qd4 {1-0 (18) Keiper,A (1684)-Dunning,S (1569) IECC email 2018}) 11... Re8 {[%emt 0:00:07]} 12. b5 {[%emt 0:00:07]} Na5 {[%emt 0:00:04]} 13. c4 {[%emt 0:00:06] Inhibits d5.} Nh5 {[%emt 0:00:07][%cal Bf6h5,Bh5f4,Bf4e6,Be6d4][%mdl 32]} 14. Re1 {[%emt 0:00:14]} Nf4 {[%emt 0:00:10]} 15. Bf1 {[%emt 0:00:01]} Bd7 {[%emt 0:00:09]} 16. Nb1 {[%emt 0:00:08][%cal Bd2b1,Bb1c3,Bc3d5][%mdl 32]} Ne6 {[%emt 0:00:14]} 17. Nc3 {[%emt 0:00:04]} Nd4 {[%emt 0:00:02]} 18. Nd2 {[%emt 0:00:09]} Nb7 {[%emt 0:00:03]} 19. Nd5 {[%emt 0:00:10]} Kh7 {[%emt 0:00:03]} 20. a4 {[%emt 0:00:10]} Be6 {[%emt 0:00:05]} 21. Ra2 {[%emt 0:00:18]} f5 {[%emt 0:00:17]} 22. exf5 {[%emt 0:00:07]} gxf5 {[%emt 0:00:02]} 23. g3 {[%emt 0:00:37][%cal Bg2g3,Bg3g4][%mdl 32]} Bxd5 {[%emt 0:00:08]} 24. cxd5 {[%emt 0:00:02]} Na5 {[%emt 0:00:07]} 25. Bg2 {[%emt 0:00:19]} Qf6 {[%emt 0:00:03]} 26. g4 {[%emt 0:00:11]} Kh8 {[%emt 0:00:24]} 27. Bxd4 {[%emt 0:00:08]} exd4 {[%emt 0:00:17]} 28. Nf3 {[%emt 0:00:13]} c4 {[%emt 0:00:39]} 29. dxc4 {[%emt 0:01:26] And now Rae2 would win.} Nxc4 {[%emt 0:00:28]} (29... fxg4 $11 30. hxg4 Rxe1+ 31. Qxe1 Nxc4) 30. Rae2 {[%emt 0:00:14]} (30. Rxe8+ $14 Rxe8 31. g5) 30... Rxe2 $11 {[%emt 0:00:04]} 31. Rxe2 {[%emt 0:00:01][%cal Be1e2,Be2e6,Be6h6][%mdl 32] [#] Threatens to win with Re6.} fxg4 {[%emt 0:00:07]} 32. Re6 {[%emt 0:00:06]} Qf7 {[%emt 0:00:53]} 33. hxg4 {[%emt 0:00:11]} Rf8 {[%emt 0:00:08] Hoping for ...Ne5.} 34. Qe2 {[%emt 0:00:02]} ({White should try} 34. Qc2 $1 $14 Ne5 35. Nxe5 (35. Nxd4 Qf4 $11) 35... dxe5 36. Be4) 34... Ne5 {[%emt 0:00:16]} 35. Nxe5 {[%emt 0:00:11]} Bxe5 {[%emt 0:00:18]} ({Not} 35... dxe5 36. Be4 $16) 36. Rxh6+ {[%emt 0:00:01]} Kg7 {[%emt 0:00:00]} 37. Rh3 {[%emt 0:00:01]} ({Worse is} 37. g5 d3 38. Qe3 Qf4 39. Qxf4 Rxf4 $17) 37... Qf4 {[%emt 0:00:22]} 38. Be4 {[%emt 0:00:04]} Rh8 {[%emt 0:00:05]} 39. Rxh8 {The board is on fire.} Kxh8 $16 {[%emt 0:00:01][%mdl 4096] Endgame KQB-KQB} 40. Kf1 {[%emt 0:00:17]} Kg7 {[%emt 0:00:04]} 41. Bf5 {[%emt 0:00:09] Strongly threatening Qc2.} Kf6 {[%emt 0:00:05]} 42. Qc2 {[%emt 0:00:06]} Qf3 {[%emt 0:00:07]} 43. Qc8 {[%emt 0:00:03]} (43. Qd2 $14 Qh1+ 44. Ke2) 43... Qh3+ {[%emt 0:00:03]} (43... Kg5 $11) 44. Ke2 $14 {[%emt 0:00:02][%cal Og4g5] White threatens g5+! and mate. White is more active.} d3+ $2 {[%emt 0:00:00][%mdl 8192] [#]} (44... Kg5 $14) 45. Bxd3 {[%emt 0:00:01]} Qh6 {[%emt 0:00:07] Weighted Error Value: White=0.10 (very precise) /Black=0.27 (precise)} 1-0

[Event "Superbet Blitz Poland 2022"]
[Site "Warsaw"]
[Date "2022.05.22"]
[Round "4.2"]
[White "Duda, Jan-Krzysztof"]
[Black "Rapport, Richard"]
[Result "1/2-1/2"]
[ECO "A61"]
[WhiteElo "2750"]
[BlackElo "2776"]
[Annotator "TA"]
[PlyCount "134"]
[EventDate "2022.05.22"]
[EventType "tourn"]
[EventCountry "POL"]
[SourceTitle "playchess.com"]
[Source "ChessBase"]
[SourceQuality "1"]
[TimeControl "300+2"]

{[%evp 18,134,41,31,31,33,36,36,35,33,41,22,35,27,27,0,23,27,49,49,91,87,99,82,143,141,129,129,140,106,118,99,89,82,74,72,77,81,117,70,109,72,150,149,158,139,180,172,213,94,58,65,365,347,439,399,396,134,287,257,289,247,313,58,52,3,8,0,0,0,32,42,46,42,42,53,260,238,106,22,22,22,22,6,6,-81,8,0,0,0,4,0,4,0,0,0,8,8,8,8,8,0,0,0,0,-8,8,8,8,0,0,0,0,0,0,0,8,0,0]} 1. d4 {[%emt 0:00:01]} Nf6 {[%emt 0:00:03]} 2. c4 {[%emt 0:00:01]} e6 {[%emt 0:00:01]} 3. Nf3 {[%emt 0:00:01]} c5 {[%emt 0:00:00]} 4. d5 {[%emt 0:00:05]} d6 {[%emt 0:00:01]} 5. Nc3 {[%emt 0:00:03]} exd5 {[%emt 0:00:01]} 6. cxd5 {[%emt 0:00:01]} g6 {[%emt 0:00:01]} 7. Bf4 {[%emt 0:00:05]} a6 {[%emt 0:00:02]} 8. a4 {[%emt 0:00:01]} Bg7 {[%emt 0:00:02]} 9. e3 {[%emt 0:00:07]} O-O {[%emt 0:00:03]} 10. h3 {[%emt 0:00:02]} Ne8 {[%emt 0:00:07] A61: Modern Benoni: Nf3 without early e4.} 11. Be2 {[%emt 0:00:06]} Nd7 {[%emt 0:00:01]} 12. O-O {[%emt 0:00:03]} Ne5 {[%emt 0:00:01] White is slightly better.} 13. Nd2 {[%emt 0:00:08] 13.Bxe5 is more fashionable.} Rb8 {[%emt 0:00:09]} 14. Bh2 {[%emt 0:00:04]} f5 {[%emt 0:00:03]} 15. a5 {[%emt 0:00:08]} Nc7 {[%emt 0:00:13] [#]} 16. f4 $146 {[%emt 0:00:30]} ({Predecessor:} 16. Qb3 Bd7 17. Bxe5 Bxe5 18. Nc4 Qe7 19. Na4 f4 20. exf4 Bd4 21. Nab6 Bb5 22. Qf3 {½-½ (72) Miranda Llanes,Y (2229)-Ortiz Suarez,I (2604) Cuernavaca 2014}) 16... Nf7 {[%emt 0:00:02]} 17. Nc4 {[%emt 0:00:02]} Nb5 {[%emt 0:00:05]} 18. Na4 {[%emt 0:00:03]} Re8 {[%emt 0:00:05]} 19. Nab6 {[%emt 0:00:04]} Kh8 {[%emt 0:00:16]} 20. g4 {[%emt 0:00:26][%cal Bg2g4,Bg4g5][%mdl 32]} Nh6 {[%emt 0:00:39]} (20... Nc7 $142) 21. g5 $16 {[%emt 0:00:06]} Nf7 {[%emt 0:00:04]} 22. Bg3 {[%emt 0:00:16]} Bd7 {[%emt 0:00:12]} 23. Kg2 {[%emt 0:00:04]} Nc7 {[%emt 0:00:03]} 24. h4 {[%emt 0:00:20][%cal Bh3h4,Bh4h5][%mdl 32]} Bb5 {[%emt 0:00:03]} 25. h5 {[%emt 0:00:05]} Kg8 {[%emt 0:00:01]} 26. Ra3 {[%emt 0:00:17]} Na8 {[%emt 0:00:08]} 27. Nxa8 {[%emt 0:00:47] White is more active.} Rxa8 {[%emt 0:00:05]} 28. Qc2 {[%emt 0:00:18]} (28. b3 $16) 28... Rb8 {[%emt 0:00:16]} 29. Rf3 {[%emt 0:00:05]} Qc7 {[%emt 0:01:02]} (29... Re4 $142) 30. Bd3 {[%emt 0:00:17]} Qe7 {[%emt 0:00:05]} 31. b3 {[%emt 0:00:21]} Bxc4 {[%emt 0:00:30]} 32. Qxc4 {[%emt 0:00:11]} ({Don't play} 32. bxc4 $6 b5 $14) 32... Qc7 {[%emt 0:00:07]} 33. e4 {[%emt 0:00:10]} (33. Qc2 $18 {has better winning chances.}) 33... fxe4 34. Bxe4 {[%emt 0:00:01]} gxh5 {[%emt 0:00:25][%mdl 8192]} ({Better is} 34... Bd4 $14 35. Qc2 Qe7) 35. Qd3 $18 {[%emt 0:00:02]} h6 {[%emt 0:00:16]} 36. Bh7+ {[%emt 0:00:32] A strong pair of Bishops.} Kh8 {[%emt 0:00:03]} 37. Bg6 $2 {[%emt 0:00:02]} (37. g6 $18) 37... Rf8 $2 {[%emt 0:00:09]} (37... hxg5 $16 38. Bxh5 Re7) 38. Bxh5 {[%emt 0:00:05]} Rbe8 {[%emt 0:00:08]} 39. Ra2 {[%emt 0:00:07]} Qe7 {[%emt 0:00:07]} 40. Raf2 $2 {[%emt 0:00:06]} (40. g6 $18 Nd8 41. Rff2) 40... hxg5 $14 {[%emt 0:00:04]} 41. fxg5 {[%emt 0:00:05]} (41. Qb1 $14) 41... Nxg5 $11 {[%emt 0:00:04]} 42. Rxf8+ Rxf8 {[%emt 0:00:01]} 43. Rxf8+ {[%emt 0:00:06]} Qxf8 {[%emt 0:00:03]} 44. Qg6 {[%emt 0:00:01][%csl LRd6,LRg5]} Qf6 {[%emt 0:00:03]} 45. Qxf6 {[%emt 0:00:04][%mdl 64] Remove Defender} Bxf6 {[%emt 0:00:01]} 46. Bxd6 $14 {[%emt 0:00:01][%mdl 4096] Endgame KBB-KBN} Ne4 $2 {[%emt 0:00:03] [#]} (46... Kg7 $14) 47. Bc7 $1 $18 {[%emt 0:00:02] Threatens to win with Bf3.} Be7 {[%emt 0:00:04] [#]} 48. Bg4 {[%emt 0:00:02]} (48. Kf3 $1 $16 {[%cal Rf3e4]} Nd6 49. Kf4) 48... Kg7 $11 {[%emt 0:00:06]} 49. Bc8 {[%emt 0:00:03]} Nd6 {[%emt 0:00:03]} 50. Be6 {[%emt 0:00:01]} Kf6 {[%emt 0:00:02]} 51. Kf3 {[%emt 0:00:01]} (51. Bxd6 $11 Bxd6 52. Bc8) 51... c4 {[%emt 0:00:04]} (51... Nb5 $17 52. Bf4 Nd4+ 53. Ke4 Nxe6 54. Be5+ Kf7 55. dxe6+ Kxe6) 52. bxc4 {[%emt 0:00:01] The position is equal.} Nxc4 {[%emt 0:00:01]} 53. Ke4 {[%emt 0:00:02]} Bc5 {[%emt 0:00:03]} 54. Kd3 {[%emt 0:00:03]} Nd6 {[%emt 0:00:02]} 55. Bd8+ {[%emt 0:00:02]} Ke5 {[%emt 0:00:01]} 56. Bh4 {[%emt 0:00:01]} Kf4 {[%emt 0:00:01]} 57. Be1 {[%emt 0:00:01]} Ke5 {[%emt 0:00:08]} 58. Bc3+ {[%emt 0:00:01]} Kf4 {[%emt 0:00:01]} 59. Bd7 {[%emt 0:00:01]} Ne4 {[%emt 0:00:04]} 60. Bb2 {[%emt 0:00:07]} Bb4 {[%emt 0:00:03]} 61. Bc8 {[%emt 0:00:02]} Bxa5 {[%emt 0:00:01]} 62. Ba3 {[%emt 0:00:02]} Bb6 {[%emt 0:00:04]} 63. Kc4 {[%emt 0:00:03]} (63. d6 {is interesting.} a5 64. d7 Bd8 65. Bxb7 Nf6 66. Bc8) 63... Bc7 {[%emt 0:00:02]} 64. Bxb7 {[%emt 0:00:02]} Nd6+ {[%emt 0:00:01]} 65. Bxd6+ {[%emt 0:00:01]} Bxd6 {[%emt 0:00:01]} 66. Bxa6 {[%emt 0:00:01]} Be5 {[%emt 0:00:01]} 67. d6 {[%emt 0:00:00]} Bxd6 {Weighted Error Value: White=0.31/Black=0.40} 1/2-1/2

[Event "Superbet Blitz Poland 2022"]
[Site "Warsaw"]
[Date "2022.05.22"]
[Round "4.3"]
[White "Korobov, Anton"]
[Black "Caruana, Fabiano"]
[Result "0-1"]
[ECO "A21"]
[WhiteElo "2671"]
[BlackElo "2786"]
[Annotator "TA"]
[PlyCount "92"]
[EventDate "2022.05.22"]
[EventType "tourn"]
[EventCountry "POL"]
[SourceTitle "playchess.com"]
[Source "ChessBase"]
[SourceQuality "1"]
[TimeControl "300+2"]

{[%evp 10,92,12,8,12,0,0,0,0,0,0,-29,-18,-25,-27,-64,-24,-75,-71,-83,-67,-107,-113,-104,-105,-107,-127,-119,-75,-92,-72,-97,-95,-250,-260,-246,-246,-275,-272,-239,-224,-373,-233,-318,-312,-387,-299,-433,-431,-508,-518,-516,-515,-490,-504,-585,-474,-462,-439,-477,-477,-832,-900,-1134,-883,-974,-940,-1341,-695,-689,-666,-935,-793,-815,-811,-727,-793,-768,-757,-860,-840,-1124,-1068,-1029,-979]} 1. c4 {[%emt 0:00:01]} e5 {[%emt 0:00:01]} 2. Nc3 {[%emt 0:00:02]} Bb4 {[%emt 0:00:02]} 3. g3 {[%emt 0:00:08]} Bxc3 {[%emt 0:00:05]} 4. bxc3 {[%emt 0:00:01]} Nc6 {[%emt 0:00:05]} 5. Bg2 {[%emt 0:00:02]} d6 {[%emt 0:00:01]} 6. d3 {[%emt 0:00:09]} Nge7 $1 {[%emt 0:00:06] 6...Nge7 scores better than 6...f5. A21: English Opening: 1...e5 2 Nc3.} 7. e4 {[%emt 0:00:29]} O-O {[%emt 0:00:03]} 8. Nf3 {[%emt 0:00:14]} f5 {[%emt 0:00:10] The position is equal.} 9. exf5 {[%emt 0:00:29]} Bxf5 {[%emt 0:00:01]} 10. Ng5 {[%emt 0:00:13] [#]} h6 $146 {[%emt 0:00:17]} ({Predecessor:} 10... Qd7 11. O-O h6 12. Ne4 Bh3 13. Bxh3 Qxh3 14. Qe2 Rf7 15. Bd2 Raf8 16. f3 {½-½ (16) Ivanchuk,V (2728)-Kazhgaleyev,M (2576) Tbilisi 2017}) 11. Ne4 {[%emt 0:00:04]} Qd7 {[%emt 0:00:03]} 12. h3 {[%emt 0:00:26]} b6 {[%emt 0:00:10]} 13. Be3 {[%emt 0:00:30]} (13. g4 $11 Bg6 14. O-O) 13... d5 {[%emt 0:00:18]} 14. cxd5 {[%emt 0:00:03]} Nxd5 {[%emt 0:00:02]} 15. Qd2 {[%emt 0:00:37]} Rad8 {[%emt 0:00:04]} 16. Rd1 {[%emt 0:00:17]} Nce7 {[%emt 0:00:11][%cal Bc6e7,Be7c8,Bc8d6][%mdl 32]} 17. c4 {[%emt 0:00:32]} Nxe3 {[%emt 0:00:11]} 18. fxe3 {[%emt 0:00:02]} Bg6 {[%emt 0:00:20]} 19. g4 {[%emt 0:00:09]} Nc8 {[%emt 0:00:08]} 20. Rf1 {[%emt 0:00:13]} Qe7 {[%emt 0:00:08]} 21. Rf2 $2 {[%emt 0:00:08] This move loses the game for White.} (21. Rxf8+ $17 {keeps fighting.} Rxf8 22. Ke2) 21... Qh4 $19 {[%emt 0:00:14]} 22. Qe2 {[%emt 0:00:05]} Nd6 {[%emt 0:01:19]} 23. Nc3 {[%emt 0:00:11]} Qg3 {[%emt 0:00:40][%cal Oe5e4]} 24. Rd2 {[%emt 0:00:12]} Kh7 {[%emt 0:00:18]} 25. Bd5 {[%emt 0:00:11]} (25. Nd1 {might work better.}) 25... Qxh3 {[%emt 0:00:17]} 26. Rxf8 {[%emt 0:00:04]} Rxf8 {[%emt 0:00:01] The board is on fire.} 27. Kd1 {[%emt 0:00:01]} Qg3 {[%emt 0:00:16]} 28. Kc2 {[%emt 0:00:01]} (28. Kc1 {is a better defense.}) 28... c6 {[%emt 0:00:02] Black is clearly winning.} 29. Bxc6 {[%emt 0:00:08]} Nxc4 {[%emt 0:00:04]} 30. Ne4 {[%emt 0:00:01]} Nxe3+ {[%emt 0:00:04]} 31. Kb2 {[%emt 0:00:02]} Qf4 {[%emt 0:00:05]} 32. g5 {[%emt 0:00:03]} h5 {[%emt 0:00:03]} 33. Qe1 {[%emt 0:00:04]} Ng4 {[%emt 0:00:03] Inhibits Rf2.} 34. Bd5 {[%emt 0:00:08]} Rd8 {[%emt 0:00:03]} 35. Nc3 {[%emt 0:00:02]} (35. Bc6 $142) 35... Qd4 {[%emt 0:00:05]} 36. Bb3 {[%emt 0:00:02]} Rc8 {[%emt 0:00:02]} 37. Rc2 {[%emt 0:00:05]} Bxd3 {[%emt 0:00:02]} 38. Rc1 {[%emt 0:00:00][%cal Bc2c1,Bc1d1,Bd1d7][%mdl 32]} Bg6 {[%emt 0:00:04] [#] aiming for ...Nf2.} 39. Rd1 {[%emt 0:00:02]} Qf4 {[%emt 0:00:03] And now ...Nf2 would win.} 40. Rd7 {[%emt 0:00:02]} Ne3 {[%emt 0:00:03]} 41. Qd2 {[%emt 0:00:04]} Nc4+ {[%emt 0:00:02]} 42. Bxc4 {[%emt 0:00:01]} Qxd2+ {[%emt 0:00:01]} 43. Rxd2 {[%emt 0:00:02]} Rxc4 {[%emt 0:00:01]} 44. Rd7 {[%emt 0:00:01]} Bf5 {[%emt 0:00:07]} 45. Rxa7 {[%emt 0:00:03]} h4 {[%emt 0:00:01] [#] Threatens to win with ...h3.} 46. Re7 {[%emt 0:00:03]} Rc5 {[%emt 0:00:03] Weighted Error Value: White=0.68/Black=0.32} 0-1